fUST/lending_fUST_20250227
["ID","MTS","AMOUNT","RATE_DAILY","PERIOD"]
[354682899,1740615033127,-500.0,0.00024,30]
[354682900,1740615033140,-500.0,0.00024,30]
[354682901,1740615033156,-500.0,0.00024,30]
[354682902,1740615033169,-500.0,0.00024,30]
[354682903,1740615033180,-500.0,0.00024,30]
[354682904,1740615033194,-500.0,0.00024,30]
[354682905,1740615033207,-500.0,0.00024,30]
[354682906,1740615033223,-500.0,0.00024,30]
[354682907,1740615033238,-500.0,0.00024,30]
[354682910,1740615033254,-500.0,0.00024,30]
[354682912,1740615033271,-500.0,0.00024,30]
[354682914,1740615033285,-500.0,0.00024,30]
[354682916,1740615033297,-500.0,0.00024,30]
[354682919,1740615033310,-500.0,0.00024,30]
[354682921,1740615033327,-500.0,0.00024,30]
[354682924,1740615033342,-500.0,0.00024,30]
[354682926,1740615033353,-500.0,0.00024,30]
[354682928,1740615033368,-500.0,0.00024,30]
[354682931,1740615033382,-500.0,0.00024,30]
[354682933,1740615033396,-500.0,0.00024,30]
[354682936,1740615033411,-500.0,0.00024,30]
[354682938,1740615033423,-871.57039818,0.00024,30]
[354682940,1740615033438,-500.0,0.00024,30]
[354682943,1740615033455,-500.0,0.00024,30]
[354682945,1740615033468,-500.0,0.00024,30]
[354682947,1740615033482,-500.0,0.00024,30]
[354682950,1740615033499,-800.0,0.00024,30]
[354682952,1740615033512,-800.0,0.00024,30]
[354682954,1740615033524,-800.0,0.00024,30]
[354682956,1740615033537,-800.0,0.00024,30]
[354682959,1740615033550,-800.0,0.00024,30]
[354682961,1740615033563,-800.0,0.00024,30]
[354682964,1740615033577,-800.0,0.00024,30]
[354682966,1740615033590,-800.0,0.00024,30]
[354682968,1740615033603,-800.0,0.00024,30]
[354682971,1740615033614,-800.0,0.00024,30]
[354682973,1740615033627,-800.0,0.00024,30]
[354682975,1740615033640,-800.0,0.00024,30]
[354682978,1740615033652,-800.0,0.00024,30]
[354682980,1740615033664,-1565.3362781,0.00024,30]
[354682982,1740615033677,-500.0,0.00024,2]
[354682985,1740615033690,-500.0,0.00024,2]
[354682987,1740615033703,-501.3810378,0.00024,2]
[354682989,1740615033715,-500.0,0.00024,2]
[354682991,1740615033729,-500.0,0.00024,2]
[354682994,1740615033742,-420.0,0.00024967,2]
[354682996,1740615033756,-445.42909941,0.000251,4]
[354682998,1740615033771,-224.0,0.00025457,3]
[354683001,1740615033784,-1010.17849528,0.000259,2]
[354683003,1740615033797,-500.0,0.00026,2]
[354683005,1740615033809,-500.0,0.00026,2]
[354683008,1740615033823,-500.0,0.00026,2]
[354683010,1740615033836,-500.0,0.00026,2]
[354683013,1740615033849,-500.0,0.00026,2]
[354683015,1740615033861,-800.0,0.00026,2]
[354683017,1740615033873,-800.0,0.00026,2]
[354683019,1740615033886,-800.0,0.00026,2]
[354683022,1740615033898,-800.0,0.00026,2]
[354683024,1740615033911,-800.0,0.00026,2]
[354683026,1740615033924,-800.0,0.00026,2]
[354683029,1740615033936,-800.0,0.00026,2]
[354683031,1740615033948,-800.0,0.00026,2]
[354683033,1740615033960,-800.0,0.00026,2]
[354683036,1740615033973,-800.0,0.00026,2]
[354683038,1740615033986,-800.0,0.00026,2]
[354683040,1740615033998,-800.0,0.00026,2]
[354683043,1740615034011,-800.0,0.00026,2]
[354683045,1740615034024,-800.0,0.00026,2]
[354683047,1740615034037,-500.0,0.00026348,4]
[354683049,1740615034050,-445.42909925,0.00026348,4]
[354683052,1740615034064,-500.0,0.00026622,4]
[354683054,1740615034078,-500.0,0.00026896,4]
[354683057,1740615034091,-587.0,0.00027103,2]
[354683059,1740615034104,-500.0,0.0002717,4]
[354683061,1740615034119,-303.22139897,0.00027657,2]
[354683064,1740615034132,-1201.79468011,0.00027751,2]
[354683066,1740615034145,-151.0,0.00027887,2]
[354683069,1740615034158,-500.0,0.00027887,2]
[354683071,1740615034172,-24900.0,0.00027904,2]
[354683073,1740615034185,-380.0,0.00028254,2]
[354683075,1740615034197,-500.0,0.00028435,2]
[354683078,1740615034210,-445.42909925,0.00028797,5]
[354683080,1740615034224,-500.0,0.00028983,2]
[354683083,1740615034237,-366.93,0.00029,7]
[354683085,1740615034250,-823.0,0.00029422,2]
[354683087,1740615034263,-1000.0,0.00029479,5]
[354683090,1740615034276,-1000.0,0.00029479,5]
[354683092,1740615034289,-500.0,0.00029531,2]
[354683094,1740615034301,-267.0,0.0003,2]
[354683097,1740615034314,-500.0,0.00030079,2]
[354683099,1740615034327,-302.0,0.00030627,2]
[354683101,1740615034340,-1010.17849528,0.000309,2]
[354683104,1740615034352,-445.42909925,0.00031245,5]
[354683106,1740615034365,-1201.79468011,0.00031602,2]
[354683108,1740615034377,-453.0,0.00031939,2]
[354683111,1740615034389,-445.42909925,0.00033693,6]
[354683113,1740615034398,-561.311867,0.00034443,2]
[354683115,1740615034408,-250.0,0.00034559,2]
[354683117,1740615034417,-19607.61712864,0.00034569,2]
[354683119,1740615034427,-200.0,0.00035001,2]
[354683121,1740615034438,-1201.79468011,0.00035453,2]
[354683123,1740615034447,-445.42909925,0.00036141,7]
[354683125,1740615034457,-160.538885,0.0003762,2]
[354683127,1740615034466,-445.42909925,0.0003859,8]
[354683129,1740615034476,-1201.79468011,0.00039305,2]
[354683131,1740615034486,-1500.0,0.00039498,5]
[354683157,1740615034722,-500.0,0.00039498,5]
[354683160,1740615034741,-445.42909925,0.00041038,9]
[354683163,1740615034760,-1000.0,0.00042,90]
[354683165,1740615034771,-878.504,0.00042795,65]
[354683167,1740615034780,-1201.79468011,0.00043156,28]
[354683169,1740615034788,-445.42909925,0.00043486,9]
[354683171,1740615034798,-30687.68,0.00043561,120]
[354683173,1740615034807,-151.0,0.00045,120]
[354683175,1740615034816,-151.0,0.00045,120]
[354683177,1740615034826,-117052.48079599,0.00045,120]
[354683179,1740615034842,-12736.79726829,0.00045,120]
[354683181,1740615034852,-1000.0,0.000458,50]
[354683183,1740615034861,-205.57189239,0.000459,2]
[354683185,1740615034871,-445.42909925,0.00045934,10]
[354683187,1740615034880,-5512.53020262,0.00046,120]
[354683189,1740615034889,-7982.28837579,0.00046,120]
[354683191,1740615034898,-55749.047665,0.00046,120]
[354683193,1740615034908,-205.57189237,0.00046044,2]
[354683195,1740615034917,-205.57189237,0.00046188,2]
[354683198,1740615034926,-205.57189237,0.00046331,2]
[354683200,1740615034935,-151.0,0.000464,21]
[354683202,1740615034944,-151.0,0.000464,30]
[354683204,1740615034954,-6209.67194613,0.00046475,2]
[354683206,1740615034963,-205.57189237,0.00046475,2]
[354683208,1740615034972,-151.0,0.000465,24]
[354683210,1740615034983,-1000.0,0.00046571,120]
[354683212,1740615034993,-35621.91996098,0.00046571,7]
[354683214,1740615035004,-129489.06725902,0.00046571,7]
[354683216,1740615035014,-255.23769833,0.00046572,31]
[354683218,1740615035023,-500.0,0.00046572,2]
[354683220,1740615035033,-500.0,0.00046572,120]
[354683222,1740615035042,-500.0,0.00046572,120]
[354683224,1740615035050,-500.0,0.00046572,120]
[354683226,1740615035060,-500.0,0.00046572,120]
[354683228,1740615035069,-500.0,0.00046572,2]
[354683230,1740615035079,-500.0,0.00046572,120]
[354683232,1740615035088,-500.0,0.00046572,120]
[354683234,1740615035098,-500.0,0.00046572,2]
[354683236,1740615035107,-500.0,0.00046572,120]
[354683238,1740615035116,-500.0,0.00046572,120]
[354683240,1740615035125,-500.0,0.00046572,120]
[354683242,1740615035134,-583.06150528,0.00046572,2]
[354683244,1740615035143,-500.0,0.00046572,120]
[354683246,1740615035152,-500.0,0.00046572,120]
[354683248,1740615035161,-500.0,0.00046572,120]
[354683250,1740615035171,-500.0,0.00046572,120]
[354683252,1740615035180,-500.0,0.00046572,120]
[354683254,1740615035190,-500.0,0.00046572,120]
[354683256,1740615035199,-337.99738551,0.00046572,120]
[354683258,1740615035209,-480.31392607,0.00046572,120]
[354683260,1740615035218,-500.0,0.00046572,120]
[354683262,1740615035227,-500.0,0.00046572,120]
[354683264,1740615035236,-500.0,0.00046572,120]
[354683266,1740615035245,-500.0,0.00046572,120]
[354683268,1740615035254,-323.2059723,0.00046572,120]
[354683270,1740615035263,-500.0,0.00046572,120]
[354683272,1740615035273,-212.64762977,0.00046572,120]
[354683274,1740615035283,-1056.00906722,0.00046572,120]
[354683276,1740615035294,-985.53788522,0.00046572,120]
[354683278,1740615035305,-1533.3,0.00046572,120]
[354683281,1740615035324,-898.48,0.00046572,120]
[354683284,1740615035335,-3508.96142335,0.00046572,120]
[354683286,1740615035345,-427.30725142,0.00046573,10]
[354683288,1740615035354,-273.41762849,0.00046573,10]
[354683290,1740615035364,-568.15760644,0.00046573,7]
[354683292,1740615035372,-152.43144796,0.00046573,10]
[354683294,1740615035382,-500.0,0.00046573,7]
[354683296,1740615035391,-500.0,0.00046573,10]
[354683298,1740615035400,-500.0,0.00046573,7]
[354683300,1740615035409,-500.0,0.00046573,10]
[354683302,1740615035419,-306.03888274,0.00046573,7]
[354683304,1740615035428,-645.15975175,0.00046573,10]
[354683305,1740615035437,-615.87828274,0.00046573,7]
[354683307,1740615035447,-500.0,0.00046573,10]
[354683309,1740615035456,-500.0,0.00046573,10]
[354683311,1740615035465,-240.0,0.00046573,10]
[354683313,1740615035475,-500.0,0.00046573,10]
[354683315,1740615035485,-151.12491804,0.00046573,10]
[354683317,1740615035496,-500.0,0.00046573,10]
[354683319,1740615035506,-500.0,0.00046573,10]
[354683321,1740615035515,-500.0,0.00046573,10]
[354683323,1740615035525,-500.0,0.00046573,10]
[354683325,1740615035535,-500.0,0.00046573,10]
[354683327,1740615035544,-219.64839805,0.00046573,10]
[354683329,1740615035553,-500.0,0.00046573,10]
[354683331,1740615035563,-500.0,0.00046573,10]
[354683333,1740615035573,-500.50973305,0.00046573,7]
[354683335,1740615035583,-267.91619475,0.00046573,7]
[354683337,1740615035593,-500.0,0.00046573,10]
[354683340,1740615035602,-500.0,0.00046573,10]
[354683342,1740615035612,-500.0,0.00046573,10]
[354683344,1740615035621,-500.0,0.00046573,10]
[354683346,1740615035630,-500.0,0.00046573,10]
[354683348,1740615035639,-500.0,0.00046573,10]
[354683349,1740615035648,-500.0,0.00046573,10]
[354683351,1740615035659,-500.0,0.00046573,10]
[354683354,1740615035669,-500.0,0.00046573,10]
[354683356,1740615035679,-3606.74848122,0.00046573,30]
[354683358,1740615035691,-2200.0,0.00046573,30]
[354683601,1740615038256,-500.0,0.00046572,31]
[354683602,1740615038265,-212.49049379,0.00046572,120]
[354683603,1740615038275,-500.0,0.00046572,120]
[354683604,1740615038285,-596.95509401,0.00046572,31]
[354683605,1740615038295,-455.42865553,0.00046572,120]
[354683606,1740615038305,-390.23640529,0.00046572,120]
[354683607,1740615038315,-500.0,0.00046572,31]
[354683608,1740615038324,-267.27053044,0.00046572,120]
[354683609,1740615038333,-500.0,0.00046572,120]
[354683610,1740615038343,-500.0,0.00046572,31]
[354683611,1740615038353,-500.0,0.00046572,31]
[354683612,1740615038363,-500.0,0.00046572,120]
[354683613,1740615038373,-500.0,0.00046572,120]
[354683614,1740615038382,-500.0,0.00046572,31]
[354683615,1740615038392,-500.0,0.00046572,31]
[354683616,1740615038402,-500.0,0.00046572,120]
[354683617,1740615038412,-500.0,0.00046572,31]
[354683618,1740615038421,-500.0,0.00046572,120]
[354683619,1740615038433,-609542.89139773,0.00046573,30]
[354683620,1740615038442,-500.0,0.00046573,120]
[354683621,1740615038452,-500.0,0.00046573,120]
[354683622,1740615038462,-500.0,0.00046573,120]
[354683623,1740615038472,-500.0,0.00046573,120]
[354683624,1740615038483,-500.0,0.00046573,120]
[354683625,1740615038495,-500.0,0.00046573,120]
[354683626,1740615038504,-500.0,0.00046573,120]
[354683627,1740615038513,-500.0,0.00046573,120]
[354683628,1740615038522,-473.78484,0.00046573,120]
[354683629,1740615038533,-7982.28837579,0.00046573,30]
[354683630,1740615038542,-500.0,0.00046575,30]
[354683632,1740615038551,-244.12595577,0.00046575,120]
[354683634,1740615038561,-500.0,0.00046575,120]
[354683636,1740615038573,-500.0,0.00046575,120]
[354683638,1740615038583,-516.35703733,0.00046575,120]
[354683640,1740615038593,-500.0,0.00046575,120]
[354683642,1740615038602,-500.0,0.00046575,120]
[354683644,1740615038611,-193.14761589,0.00046575,120]
[354683646,1740615038621,-500.0,0.00046575,120]
[354683649,1740615038635,-500.0,0.00046575,120]
[354683651,1740615038644,-500.0,0.00046575,120]
[354683653,1740615038654,-287.80668082,0.00046575,120]
[354683655,1740615038664,-493.10099879,0.00046575,120]
[354683657,1740615038674,-500.0,0.00046575,120]
[354683658,1740615038683,-500.0,0.00046575,120]
[354683660,1740615038694,-500.0,0.00046575,120]
[354683662,1740615038703,-500.0,0.00046575,120]
[354683664,1740615038712,-500.0,0.00046575,120]
[354683666,1740615038722,-500.0,0.00046575,120]
[354683668,1740615038734,-500.0,0.00046575,120]
[354683670,1740615038744,-500.0,0.00046575,120]
[354683672,1740615038754,-500.0,0.00046575,120]
[354683674,1740615038763,-500.0,0.00046575,120]
[354683676,1740615038773,-500.0,0.00046575,120]
[354683678,1740615038783,-518.96516754,0.00046575,120]
[354683680,1740615038793,-500.0,0.00046575,120]
[354683682,1740615038803,-498.30640517,0.00046575,120]
[354683684,1740615038813,-500.0,0.00046575,120]
[354683686,1740615038823,-258.989805,0.00046575,120]
[354683688,1740615038833,-500.0,0.00046575,120]
[354683690,1740615038843,-556.53,0.00046575,120]
[354683693,1740615038855,-500.0,0.00046575,120]
[354683694,1740615038866,-500.0,0.00046575,120]
[354683696,1740615038876,-500.0,0.00046575,120]
[354683699,1740615038886,-500.0,0.00046575,120]
[354683700,1740615038896,-500.0,0.00046575,120]
[354683703,1740615038906,-500.0,0.00046575,120]
[354683705,1740615038916,-500.0,0.00046575,120]
[354683707,1740615038926,-500.0,0.00046575,120]
[354683708,1740615038935,-500.0,0.00046575,120]
[354683710,1740615038945,-684.48,0.00046575,120]
[354683713,1740615038955,-500.0,0.00046575,120]
[354683715,1740615038966,-696.96,0.00046575,120]
[354683717,1740615038978,-500.0,0.00046575,120]
[354683719,1740615038988,-511.48938265,0.00046575,120]
[354683736,1740615039157,-500.0,0.00046575,120]
[354683739,1740615039167,-507.24227474,0.00046575,120]
[354683741,1740615039177,-500.0,0.00046575,120]
[354683743,1740615039188,-500.0,0.00046575,120]
[354683745,1740615039198,-500.0,0.00046575,120]
[354683747,1740615039208,-500.0,0.00046575,120]
[354683749,1740615039217,-500.0,0.00046575,7]
[354683751,1740615039229,-597.66,0.00046575,120]
[354683753,1740615039238,-500.0,0.00046575,120]
[354683755,1740615039248,-579.5,0.00046575,120]
[354683756,1740615039258,-444.57651355,0.00046575,120]
[354683758,1740615039267,-500.0,0.00046575,120]
[354683760,1740615039277,-500.0,0.00046575,120]
[354683762,1740615039286,-500.0,0.00046575,120]
[354683764,1740615039296,-500.0,0.00046575,120]
[354683765,1740615039306,-508.99181733,0.00046575,120]
[354683767,1740615039315,-1194.19,0.00046575,120]
[354683769,1740615039325,-500.0,0.00046575,120]
[354683770,1740615039335,-500.0,0.00046575,120]
[354683771,1740615039345,-500.0,0.00046575,120]
[354683772,1740615039354,-522.55,0.00046575,120]
[354683773,1740615039364,-500.0,0.00046575,120]
[354683774,1740615039373,-500.0,0.00046575,120]
[354683775,1740615039383,-500.0,0.00046575,120]
[354683776,1740615039399,-249.88080859,0.00046575,120]
[354683777,1740615039409,-251.53663515,0.00046575,120]
[354683778,1740615039419,-500.0,0.00046575,120]
[354683779,1740615039428,-500.0,0.00046575,120]
[354683780,1740615039438,-501.13224049,0.00046575,120]
[354683781,1740615039448,-500.0,0.00046575,2]
[354683782,1740615039458,-500.0,0.00046575,120]
[354683783,1740615039468,-500.0,0.00046575,120]
[354683784,1740615039478,-500.0,0.00046575,120]
[354683785,1740615039491,-500.0,0.00046575,120]
[354683786,1740615039501,-500.0,0.00046575,120]
[354683787,1740615039511,-500.51702038,0.00046575,120]
[354683788,1740615039520,-500.0,0.00046575,120]
[354683789,1740615039532,-500.0,0.00046575,120]
[354683790,1740615039542,-500.0,0.00046575,120]
[354683791,1740615039552,-500.0,0.00046575,120]
[354683792,1740615039562,-500.0,0.00046575,120]
[354683793,1740615039572,-500.0,0.00046575,120]
[354683794,1740615039583,-500.0,0.00046575,120]
[354683795,1740615039592,-500.0,0.00046575,120]
[354683796,1740615039603,-500.0,0.00046575,120]
[354683797,1740615039612,-500.0,0.00046575,120]
[354683798,1740615039622,-500.0,0.00046575,120]
[354683800,1740615039631,-500.0,0.00046575,120]
[354683802,1740615039641,-300.0,0.00046575,120]
[354683804,1740615039650,-500.0,0.00046575,120]
[354683806,1740615039660,-500.0,0.00046575,120]
[354683808,1740615039669,-500.0,0.00046575,120]
[354683809,1740615039679,-500.0,0.00046575,120]
[354683810,1740615039689,-500.0,0.00046575,120]
[354683811,1740615039699,-500.0,0.00046575,120]
[354683812,1740615039708,-500.0,0.00046575,120]
[354683813,1740615039718,-500.0,0.00046575,120]
[354683814,1740615039728,-500.0,0.00046575,120]
[354683815,1740615039739,-500.0,0.00046575,120]
[354683816,1740615039749,-500.0,0.00046575,120]
[354683817,1740615039758,-500.0,0.00046575,120]
[354683818,1740615039767,-500.0,0.00046575,120]
[354683819,1740615039777,-503.974414,0.00046575,120]
[354683820,1740615039787,-535.91,0.00046575,120]
[354683821,1740615039797,-500.0,0.00046575,120]
[354683822,1740615039808,-500.0,0.00046575,120]
[354683823,1740615039817,-500.0,0.00046575,120]
[354683824,1740615039827,-500.0,0.00046575,120]
[354683825,1740615039836,-500.0,0.00046575,120]
[354683826,1740615039846,-500.0,0.00046575,14]
[354683828,1740615039855,-1117.48,0.00046575,120]
[354683829,1740615039866,-500.0,0.00046575,120]
[354683830,1740615039875,-286.44052615,0.00046575,120]
[354683831,1740615039884,-500.0,0.00046575,120]
[354683832,1740615039894,-200.48659409,0.00046575,120]
[354683833,1740615039903,-500.0,0.00046575,120]
[354683834,1740615039913,-607.66,0.00046575,120]
[354683835,1740615039922,-500.0,0.00046575,120]
[354683836,1740615039932,-500.0,0.00046575,120]
[354683838,1740615039941,-500.0,0.00046575,120]
[354683839,1740615039951,-500.0,0.00046575,120]
[354683840,1740615039960,-500.0,0.00046575,120]
[354683841,1740615039970,-500.0,0.00046575,120]
[354683842,1740615039992,-1000.0,0.00046575,120]
[354683843,1740615040004,-500.0,0.00046575,120]
[354683844,1740615040016,-500.0,0.00046575,120]
[354683845,1740615040026,-500.0,0.00046575,120]
[354683846,1740615040037,-500.0,0.00046575,120]
[354683847,1740615040048,-500.0,0.00046575,30]
[354683848,1740615040059,-500.0,0.00046575,120]
[354683849,1740615040070,-500.0,0.00046575,120]
[354683850,1740615040081,-500.0,0.00046575,120]
[354683851,1740615040092,-500.0,0.00046575,120]
[354683852,1740615040102,-500.0,0.00046575,120]
[354683853,1740615040112,-500.0,0.00046575,120]
[354683854,1740615040123,-500.0,0.00046575,120]
[354683856,1740615040133,-500.0,0.00046575,120]
[354683857,1740615040143,-500.0,0.00046575,120]
[354683858,1740615040153,-511.91622594,0.00046575,120]
[354683859,1740615040163,-500.0,0.00046575,120]
[354683860,1740615040173,-500.0,0.00046575,120]
[354683861,1740615040185,-500.0,0.00046575,120]
[354683862,1740615040195,-1285.36,0.00046575,120]
[354683863,1740615040204,-500.0,0.00046575,120]
[354683864,1740615040216,-500.0,0.00046575,120]
[354683865,1740615040226,-500.0,0.00046575,120]
[354683866,1740615040237,-502.18607029,0.00046575,120]
[354683867,1740615040247,-500.0,0.00046575,120]
[354683868,1740615040258,-500.0,0.00046575,120]
[354683869,1740615040268,-500.0,0.00046575,120]
[354683870,1740615040277,-500.0,0.00046575,120]
[354683871,1740615040287,-500.0,0.00046575,120]
[354683872,1740615040298,-515.82,0.00046575,120]
[354683874,1740615040308,-500.0,0.00046575,120]
[354683876,1740615040318,-501.45752949,0.00046575,120]
[354683877,1740615040330,-500.0,0.00046575,120]
[354683878,1740615040340,-500.0,0.00046575,120]
[354683879,1740615040350,-500.0,0.00046575,120]
[354683881,1740615040360,-500.0,0.00046575,120]
[354683883,1740615040370,-500.0,0.00046575,120]
[354683885,1740615040380,-500.0,0.00046575,120]
[354683887,1740615040390,-500.0,0.00046575,120]
[354683889,1740615040400,-500.0,0.00046575,120]
[354683891,1740615040411,-500.0,0.00046575,120]
[354683892,1740615040420,-500.0,0.00046575,120]
[354683893,1740615040430,-500.0,0.00046575,120]
[354683894,1740615040442,-500.0,0.00046575,120]
[354683895,1740615040452,-500.0,0.00046575,120]
[354683896,1740615040462,-500.0,0.00046575,120]
[354683897,1740615040471,-564.89,0.00046575,120]
[354683898,1740615040483,-500.0,0.00046575,120]
[354683899,1740615040495,-500.0,0.00046575,120]
[354683900,1740615040505,-500.0,0.00046575,120]
[354683901,1740615040515,-500.0,0.00046575,120]
[354683902,1740615040524,-500.0,0.00046575,120]
[354683903,1740615040535,-580.62,0.00046575,120]
[354683904,1740615040544,-500.0,0.00046575,120]
[354683905,1740615040554,-500.0,0.00046575,120]
[354683906,1740615040563,-219.02584653,0.00046575,120]
[354683907,1740615040575,-500.0,0.00046575,120]
[354683908,1740615040584,-500.0,0.00046575,120]
[354683909,1740615040594,-500.0,0.00046575,120]
[354683910,1740615040603,-500.0,0.00046575,120]
[354683911,1740615040613,-500.0,0.00046575,120]
[354683912,1740615040622,-542.5,0.00046575,120]
[354683913,1740615040632,-698.53,0.00046575,120]
[354683914,1740615040642,-625.66,0.00046575,120]
[354683915,1740615040652,-500.0,0.00046575,120]
[354683916,1740615040662,-500.0,0.00046575,120]
[354683917,1740615040672,-500.0,0.00046575,120]
[354683918,1740615040681,-515.67555218,0.00046575,120]
[354683919,1740615040691,-500.0,0.00046575,120]
[354683920,1740615040701,-500.0,0.00046575,120]
[354683921,1740615040711,-500.0,0.00046575,120]
[354683922,1740615040720,-529.07807315,0.00046575,120]
[354683923,1740615040731,-500.0,0.00046575,120]
[354683924,1740615040740,-500.0,0.00046575,120]
[354683925,1740615040750,-2405.94,0.00046575,120]
[354683926,1740615040759,-500.0,0.00046575,120]
[354683927,1740615040769,-552.52656968,0.00046575,120]
[354683928,1740615040778,-500.0,0.00046575,120]
[354683929,1740615040787,-515.1832253,0.00046575,120]
[354683930,1740615040796,-500.0,0.00046575,120]
[354683931,1740615040806,-500.0,0.00046575,120]
[354683932,1740615040815,-773.54,0.00046575,120]
[354683933,1740615040825,-500.0,0.00046575,120]
[354683934,1740615040834,-505.28212212,0.00046575,120]
[354683935,1740615040844,-500.0,0.00046575,120]
[354683936,1740615040853,-500.0,0.00046575,120]
[354683937,1740615040864,-500.0,0.00046575,120]
[354683938,1740615040873,-501.44079961,0.00046575,120]
[354683939,1740615040882,-500.0,0.00046575,120]
[354683940,1740615040893,-500.0,0.00046575,120]
[354683941,1740615040903,-500.0,0.00046575,120]
[354683942,1740615040914,-694.73,0.00046575,120]
[354683943,1740615040923,-500.0,0.00046575,120]
[354683944,1740615040933,-500.0,0.00046575,120]
[354683945,1740615040942,-500.0,0.00046575,120]
[354683946,1740615040952,-500.0,0.00046575,120]
[354683947,1740615040962,-500.0,0.00046575,120]
[354683948,1740615040971,-500.0,0.00046575,120]
[354683949,1740615040982,-500.0,0.00046575,120]
[354683950,1740615040992,-500.0,0.00046575,120]
[354683951,1740615041001,-500.0,0.00046575,120]
[354683952,1740615041011,-500.0,0.00046575,120]
[354683953,1740615041022,-500.0,0.00046575,120]
[354683954,1740615041031,-500.0,0.00046575,120]
[354683955,1740615041041,-500.0,0.00046575,120]
[354683956,1740615041055,-500.0,0.00046575,120]
[354683957,1740615041065,-374.49887522,0.00046575,120]
[354683958,1740615041076,-500.0,0.00046575,120]
[354683959,1740615041086,-500.0,0.00046575,120]
[354683960,1740615041097,-500.0,0.00046575,120]
[354683961,1740615041107,-500.0,0.00046575,120]
[354683962,1740615041117,-500.0,0.00046575,120]
[354683963,1740615041126,-500.0,0.00046575,120]
[354683964,1740615041136,-1595.74,0.00046575,120]
[354683965,1740615041146,-504.51,0.00046575,120]
[354683966,1740615041156,-500.0,0.00046575,120]
[354683967,1740615041166,-500.0,0.00046575,120]
[354683968,1740615041176,-500.0,0.00046575,120]
[354683969,1740615041185,-513.85,0.00046575,120]
[354683970,1740615041195,-2465.69,0.00046575,120]
[354683971,1740615041204,-500.0,0.00046575,120]
[354683972,1740615041214,-500.0,0.00046575,120]
[354683973,1740615041223,-437.97610867,0.00046575,120]
[354683974,1740615041235,-500.0,0.00046575,120]
[354683975,1740615041245,-507.25396328,0.00046575,120]
[354683976,1740615041255,-500.0,0.00046575,120]
[354683977,1740615041265,-703.05,0.00046575,120]
[354683978,1740615041276,-1275.71,0.00046575,120]
[354683979,1740615041285,-500.0,0.00046575,120]
[354683980,1740615041295,-500.0,0.00046575,120]
[354683981,1740615041305,-500.0,0.00046575,120]
[354683982,1740615041315,-648.48,0.00046575,120]
[354683983,1740615041325,-500.0,0.00046575,120]
[354683984,1740615041335,-500.0,0.00046575,120]
[354683985,1740615041345,-500.0,0.00046575,120]
[354683986,1740615041355,-500.0,0.00046575,120]
[354683987,1740615041365,-500.0,0.00046575,120]
[354683988,1740615041375,-599.93,0.00046575,120]